[Event "Early-Titled-Tuesday-Blitz-May-28-2024"]
[Site "Chess.com"]
[Date "2024.05.28"]
[Round "2"]
[White "BashiqChess"]
[Black "ManMish2"]
[Result "1/2-1/2"]
[WhiteElo "2412"]
[BlackElo "2696"]
[TimeControl "180+1"]
[EndTime "8:20:47 PDT"]
[Termination "Game drawn by stalemate"]

1. Nf3 {[%clk 0:02:58.9]} 1... Nf6 {[%clk 0:02:59.6]} 2. c3 {[%clk 0:02:57.1]}
2... d5 {[%clk 0:02:58.6]} 3. d4 {[%clk 0:02:57.6]} 3... c5 {[%clk 0:02:57.8]}
4. Bf4 {[%clk 0:02:56.9]} 4... Nc6 {[%clk 0:02:57.4]} 5. e3 {[%clk 0:02:56.8]}
5... e6 {[%clk 0:02:52.7]} 6. Nbd2 {[%clk 0:02:56.5]} 6... Bd6 {[%clk
0:02:52.4]} 7. Bg3 {[%clk 0:02:56.8]} 7... Qe7 {[%clk 0:02:45.9]} 8. Bd3 {[%clk
0:02:46.7]} 8... e5 {[%clk 0:02:42.6]} 9. dxe5 {[%clk 0:02:41.8]} 9... Nxe5
{[%clk 0:02:42.4]} 10. Nxe5 {[%clk 0:02:39.8]} 10... Bxe5 {[%clk 0:02:43.3]} 11.
Bb5+ {[%clk 0:02:39.4]} 11... Bd7 {[%clk 0:02:40.7]} 12. Bxd7+ {[%clk 0:02:38]}
12... Nxd7 {[%clk 0:02:37.1]} 13. Nf3 {[%clk 0:02:36.2]} 13... Bxg3 {[%clk
0:02:35.1]} 14. hxg3 {[%clk 0:02:37.1]} 14... Nf6 {[%clk 0:02:32.3]} 15. Qa4+
{[%clk 0:02:36.5]} 15... Qd7 {[%clk 0:02:30.9]} 16. Qxd7+ {[%clk 0:02:35.7]}
16... Kxd7 {[%clk 0:02:31.1]} 17. O-O-O {[%clk 0:02:35.6]} 17... Ke7 {[%clk
0:02:24.4]} 18. Nd2 {[%clk 0:02:20.4]} 18... h6 {[%clk 0:02:22.1]} 19. f3 {[%clk
0:02:20.8]} 19... Rad8 {[%clk 0:02:18.6]} 20. Rhe1 {[%clk 0:02:21.1]} 20... Rhe8
{[%clk 0:02:11.8]} 21. Nb3 {[%clk 0:02:20.8]} 21... b6 {[%clk 0:02:09.7]} 22.
Kc2 {[%clk 0:02:20.1]} 22... Kf8 {[%clk 0:02:06.3]} 23. Kd2 {[%clk 0:02:07.4]}
23... g6 {[%clk 0:02:03.4]} 24. Ke2 {[%clk 0:02:07.8]} 24... Kg7 {[%clk
0:02:01]} 25. Kf2 {[%clk 0:02:08.4]} 25... h5 {[%clk 0:01:58.1]} 26. Nc1 {[%clk
0:02:07.6]} 26... g5 {[%clk 0:01:43.8]} 27. Rh1 {[%clk 0:02:00.1]} 27... Kg6
{[%clk 0:01:43.4]} 28. Ne2 {[%clk 0:01:59.2]} 28... Rd7 {[%clk 0:01:38.6]} 29.
Rhe1 {[%clk 0:01:45.2]} 29... Rde7 {[%clk 0:01:35.8]} 30. Nc1 {[%clk 0:01:45.6]}
30... Re5 {[%clk 0:01:20.9]} 31. Nb3 {[%clk 0:01:30.9]} 31... R5e7 {[%clk
0:01:08.1]} 32. a4 {[%clk 0:01:29.8]} 32... a5 {[%clk 0:01:04.5]} 33. Na1 {[%clk
0:01:19.3]} 33... Rd7 {[%clk 0:00:56.6]} 34. Nc2 {[%clk 0:01:19.4]} 34... Ree7
{[%clk 0:00:47.9]} 35. Rd2 {[%clk 0:01:16.6]} 35... Re5 {[%clk 0:00:41.7]} 36.
Red1 {[%clk 0:01:15.9]} 36... Rde7 {[%clk 0:00:40.2]} 37. Re1 {[%clk 0:01:06.1]}
37... Ne8 {[%clk 0:00:40.1]} 38. Na3 {[%clk 0:00:57.2]} 38... Nd6 {[%clk
0:00:35.1]} 39. e4 {[%clk 0:00:33.3]} 39... f5 {[%clk 0:00:14.5]} 40. Rxd5
{[%clk 0:00:22.9]} 40... Rxd5 {[%clk 0:00:14.5]} 41. exd5 {[%clk 0:00:23.8]}
41... Rxe1 {[%clk 0:00:15]} 42. Kxe1 {[%clk 0:00:24.7]} 42... Kf6 {[%clk
0:00:15.2]} 43. Nb5 {[%clk 0:00:22.7]} 43... Nc4 {[%clk 0:00:14]} 44. b3 {[%clk
0:00:14.2]} 44... Ne3 {[%clk 0:00:13.9]} 45. Ke2 {[%clk 0:00:04.4]} 45... Nxd5
{[%clk 0:00:13.2]} 46. c4 {[%clk 0:00:03.9]} 46... Ne7 {[%clk 0:00:12.8]} 47.
Nc3 {[%clk 0:00:04.2]} 47... Ke6 {[%clk 0:00:12.3]} 48. Ke3 {[%clk 0:00:04.6]}
48... Ke5 {[%clk 0:00:10.6]} 49. f4+ {[%clk 0:00:04.8]} 49... gxf4+ {[%clk
0:00:09.4]} 50. gxf4+ {[%clk 0:00:05.7]} 50... Ke6 {[%clk 0:00:10.1]} 51. Kf3
{[%clk 0:00:06.4]} 51... Nc6 {[%clk 0:00:10]} 52. Nd5 {[%clk 0:00:03.7]} 52...
Nd4+ {[%clk 0:00:10.2]} 53. Kg3 {[%clk 0:00:04.4]} 53... Nxb3 {[%clk 0:00:10.5]}
54. Nxb6 {[%clk 0:00:05.1]} 54... Nd2 {[%clk 0:00:10.4]} 55. Kh4 {[%clk
0:00:05.4]} 55... Nf1 {[%clk 0:00:06.1]} 56. Kxh5 {[%clk 0:00:04.1]} 56... Ne3
{[%clk 0:00:06.4]} 57. Kg5 {[%clk 0:00:04]} 57... Nxg2 {[%clk 0:00:06.1]} 58.
Nd5 {[%clk 0:00:02.4]} 58... Ne1 {[%clk 0:00:06.3]} 59. Nc7+ {[%clk 0:00:02.9]}
59... Kd6 {[%clk 0:00:06.5]} 60. Nb5+ {[%clk 0:00:03.4]} 60... Ke6 {[%clk
0:00:06.7]} 61. Nc7+ {[%clk 0:00:04.1]} 61... Kd7 {[%clk 0:00:07]} 62. Ne8
{[%clk 0:00:04.8]} 62... Kxe8 {[%clk 0:00:06.9]} 63. Kxf5 {[%clk 0:00:05.3]}
63... Nd3 {[%clk 0:00:05.7]} 64. Ke4 {[%clk 0:00:04.8]} 64... Nb2 {[%clk
0:00:05.2]} 65. Kd5 {[%clk 0:00:02.3]} 65... Nxa4 {[%clk 0:00:05.6]} 66. Kc6
{[%clk 0:00:01.8]} 66... Ke7 {[%clk 0:00:04.3]} 67. Kb5 {[%clk 0:00:02]} 67...
Nc3+ {[%clk 0:00:04]} 68. Kxc5 {[%clk 0:00:01]} 68... Kf6 {[%clk 0:00:03.2]} 69.
f5 {[%clk 0:00:01]} 69... Kxf5 {[%clk 0:00:03.1]} 70. Kd4 {[%clk 0:00:01.5]}
70... Na4 {[%clk 0:00:02.7]} 71. c5 {[%clk 0:00:01.5]} 71... Ke6 {[%clk
0:00:03.2]} 72. Kc4 {[%clk 0:00:02]} 72... Nb2+ {[%clk 0:00:03.2]} 73. Kb5
{[%clk 0:00:02.2]} 73... a4 {[%clk 0:00:03.6]} 74. Kb4 {[%clk 0:00:03]} 74...
Kd5 {[%clk 0:00:02.2]} 75. Ka3 {[%clk 0:00:03.7]} 75... Kxc5 {[%clk 0:00:01.4]}
76. Kxb2 {[%clk 0:00:04.3]} 76... Kb4 {[%clk 0:00:02.3]} 77. Ka2 {[%clk
0:00:05.2]} 77... a3 {[%clk 0:00:03]} 78. Ka1 {[%clk 0:00:06.1]} 78... Kb3
{[%clk 0:00:03.9]} 79. Kb1 {[%clk 0:00:06.8]} 79... a2+ {[%clk 0:00:04.8]} 80.
Ka1 {[%clk 0:00:07.7]} 80... Ka3 {[%clk 0:00:05.7]} 1/2-1/2

[Event "Early-Titled-Tuesday-Blitz-May-28-2024"]
[Site "Chess.com"]
[Date "2024.05.28"]
[Round "2"]
[White "nabukatnezarr"]
[Black "Irina_Mikhaylova"]
[Result "1/2-1/2"]
[WhiteElo "2669"]
[BlackElo "2340"]
[TimeControl "180+1"]
[EndTime "8:20:58 PDT"]
[Termination "Game drawn by repetition"]

1. b3 {[%clk 0:03:00.9]} 1... Nf6 {[%clk 0:02:58.8]} 2. Bb2 {[%clk 0:03:01.8]}
2... g6 {[%clk 0:02:59.3]} 3. Bxf6 {[%clk 0:03:01.2]} 3... exf6 {[%clk
0:02:59.4]} 4. c4 {[%clk 0:03:01.6]} 4... f5 {[%clk 0:02:59.5]} 5. Nc3 {[%clk
0:03:01.3]} 5... h5 {[%clk 0:02:58]} 6. e3 {[%clk 0:02:48.1]} 6... h4 {[%clk
0:02:54.6]} 7. h3 {[%clk 0:02:40.4]} 7... Bg7 {[%clk 0:02:41.5]} 8. d4 {[%clk
0:02:39.2]} 8... d6 {[%clk 0:02:40.1]} 9. Bd3 {[%clk 0:02:38.1]} 9... Nd7 {[%clk
0:02:39.4]} 10. Nge2 {[%clk 0:02:29.1]} 10... Nf6 {[%clk 0:02:36.8]} 11. Qc2
{[%clk 0:02:27]} 11... b6 {[%clk 0:02:17.9]} 12. d5 {[%clk 0:02:14.8]} 12... Bd7
{[%clk 0:02:12.8]} 13. Nd4 {[%clk 0:02:13.5]} 13... O-O {[%clk 0:02:06.2]} 14.
O-O {[%clk 0:02:11.2]} 14... Re8 {[%clk 0:02:03.5]} 15. Rad1 {[%clk 0:02:07.3]}
15... Qe7 {[%clk 0:02:01.5]} 16. Rfe1 {[%clk 0:02:03.1]} 16... Ne4 {[%clk
0:01:55.5]} 17. Bxe4 {[%clk 0:01:48.7]} 17... fxe4 {[%clk 0:01:56.4]} 18. Nc6
{[%clk 0:01:47]} 18... Bxc6 {[%clk 0:01:46.9]} 19. dxc6 {[%clk 0:01:47.9]} 19...
Bxc3 {[%clk 0:01:42.7]} 20. Qxc3 {[%clk 0:01:48.8]} 20... Qe5 {[%clk 0:01:42.9]}
21. Rd4 {[%clk 0:01:34.3]} 21... Qc5 {[%clk 0:01:30.1]} 22. Rd5 {[%clk
0:01:34.5]} 22... Qxc6 {[%clk 0:01:29.7]} 23. Qf6 {[%clk 0:01:35.2]} 23... Qd7
{[%clk 0:01:03.6]} 24. Qxh4 {[%clk 0:01:34.6]} 24... Kg7 {[%clk 0:01:03.6]} 25.
Red1 {[%clk 0:01:33]} 25... Qe7 {[%clk 0:00:56.9]} 26. Qf4 {[%clk 0:01:29.2]}
26... f5 {[%clk 0:00:53.2]} 27. Kf1 {[%clk 0:01:19.9]} 27... Rf8 {[%clk
0:00:41.4]} 28. Ke2 {[%clk 0:01:16.4]} 28... Rf6 {[%clk 0:00:39.3]} 29. Qg5
{[%clk 0:01:12.9]} 29... Raf8 {[%clk 0:00:33]} 30. g3 {[%clk 0:01:08.4]} 30...
Re6 {[%clk 0:00:33.3]} 31. Qxe7+ {[%clk 0:00:56.8]} 31... Rxe7 {[%clk
0:00:34.2]} 32. h4 {[%clk 0:00:57.5]} 32... Kf6 {[%clk 0:00:33.3]} 33. Kd2
{[%clk 0:00:56]} 33... Rfe8 {[%clk 0:00:32.8]} 34. Kc3 {[%clk 0:00:56.4]} 34...
a5 {[%clk 0:00:32.8]} 35. a3 {[%clk 0:00:51]} 35... Re5 {[%clk 0:00:32.9]} 36.
Rxe5 {[%clk 0:00:48.6]} 36... Rxe5 {[%clk 0:00:31.9]} 37. b4 {[%clk 0:00:48.8]}
37... axb4+ {[%clk 0:00:31.3]} 38. axb4 {[%clk 0:00:49.7]} 38... b5 {[%clk
0:00:29]} 39. Ra1 {[%clk 0:00:45.4]} 39... bxc4 {[%clk 0:00:25.3]} 40. Kxc4
{[%clk 0:00:46.3]} 40... Re7 {[%clk 0:00:16.2]} 41. Ra7 {[%clk 0:00:45.2]} 41...
Ke6 {[%clk 0:00:16.1]} 42. b5 {[%clk 0:00:42.8]} 42... Kd7 {[%clk 0:00:11.1]}
43. Ra8 {[%clk 0:00:21.8]} 43... c6 {[%clk 0:00:05.5]} 44. Ra7+ {[%clk
0:00:15.9]} 44... Kd8 {[%clk 0:00:05.1]} 45. Ra8+ {[%clk 0:00:15.9]} 45... Kc7
{[%clk 0:00:04.5]} 46. Rg8 {[%clk 0:00:10.1]} 46... cxb5+ {[%clk 0:00:03.7]} 47.
Kxb5 {[%clk 0:00:11]} 47... Re6 {[%clk 0:00:03]} 48. Rg7+ {[%clk 0:00:11.4]}
48... Kd8 {[%clk 0:00:03]} 49. Kc6 {[%clk 0:00:11.4]} 49... Rf6 {[%clk
0:00:02.8]} 50. Kd5 {[%clk 0:00:10.3]} 50... Ke8 {[%clk 0:00:02.6]} 51. Rh7
{[%clk 0:00:08.6]} 51... Kd8 {[%clk 0:00:02.6]} 52. Ra7 {[%clk 0:00:07.6]} 52...
Ke8 {[%clk 0:00:02.6]} 53. Kc6 {[%clk 0:00:07.5]} 53... Kd8 {[%clk 0:00:01.7]}
54. Rg7 {[%clk 0:00:08.1]} 54... Ke8 {[%clk 0:00:01.8]} 55. Rh7 {[%clk
0:00:08.5]} 55... Kd8 {[%clk 0:00:02]} 56. h5 {[%clk 0:00:08.8]} 56... gxh5
{[%clk 0:00:01.6]} 57. Rxh5 {[%clk 0:00:09.7]} 57... Ke8 {[%clk 0:00:02.1]} 58.
Kd5 {[%clk 0:00:10.4]} 58... Ke7 {[%clk 0:00:02.4]} 59. Rh7+ {[%clk 0:00:10.7]}
59... Ke8 {[%clk 0:00:02.1]} 60. Kc6 {[%clk 0:00:10.2]} 60... Kd8 {[%clk
0:00:01.7]} 61. Rg7 {[%clk 0:00:09.9]} 61... Ke8 {[%clk 0:00:01.8]} 62. Rg5
{[%clk 0:00:10.1]} 62... Ke7 {[%clk 0:00:01.6]} 63. Kd5 {[%clk 0:00:11]} 63...
Ke8 {[%clk 0:00:01.1]} 64. Rh5 {[%clk 0:00:11.9]} 64... Ke7 {[%clk 0:00:01.3]}
65. Rh8 {[%clk 0:00:12.8]} 65... Kd7 {[%clk 0:00:01.4]} 66. Rh7+ {[%clk
0:00:13.3]} 66... Ke8 {[%clk 0:00:01.8]} 67. Rb7 {[%clk 0:00:12.5]} 67... Kd8
{[%clk 0:00:02.1]} 68. Rb6 {[%clk 0:00:13.4]} 68... Kd7 {[%clk 0:00:02.3]} 69.
Ra6 {[%clk 0:00:13.7]} 69... Ke7 {[%clk 0:00:02.5]} 70. Ra7+ {[%clk 0:00:13.9]}
70... Kd8 {[%clk 0:00:03]} 71. Kc6 {[%clk 0:00:14.8]} 71... Ke8 {[%clk
0:00:02.6]} 72. Ra8+ {[%clk 0:00:15.4]} 72... Ke7 {[%clk 0:00:02.8]} 73. Ra4
{[%clk 0:00:14.6]} 73... Ke8 {[%clk 0:00:02.9]} 74. Kd5 {[%clk 0:00:15.5]} 74...
Ke7 {[%clk 0:00:03.2]} 75. g4 {[%clk 0:00:15.7]} 75... fxg4 {[%clk 0:00:03.2]}
76. Rxe4+ {[%clk 0:00:16.3]} 76... Kf7 {[%clk 0:00:03.6]} 77. Rxg4 {[%clk
0:00:14.8]} 77... Rxf2 {[%clk 0:00:03.9]} 78. Kxd6 {[%clk 0:00:15.2]} 78... Ke8
{[%clk 0:00:03.2]} 79. Rg8+ {[%clk 0:00:11.4]} 79... Kf7 {[%clk 0:00:03.4]} 80.
Rg5 {[%clk 0:00:10.8]} 80... Rf6+ {[%clk 0:00:03.3]} 81. Kd5 {[%clk 0:00:10]}
81... Ke7 {[%clk 0:00:02.8]} 82. e4 {[%clk 0:00:10]} 82... Ra6 {[%clk
0:00:02.8]} 83. Rg7+ {[%clk 0:00:10.5]} 83... Ke8 {[%clk 0:00:02.7]} 84. Rc7
{[%clk 0:00:09.7]} 84... Rh6 {[%clk 0:00:02.6]} 85. Ra7 {[%clk 0:00:07.1]} 85...
Rg6 {[%clk 0:00:02.8]} 86. e5 {[%clk 0:00:07.3]} 86... Rh6 {[%clk 0:00:02]} 87.
Ra8+ {[%clk 0:00:08.2]} 87... Ke7 {[%clk 0:00:02]} 88. Ra7+ {[%clk 0:00:09.1]}
88... Ke8 {[%clk 0:00:02.5]} 89. Ra5 {[%clk 0:00:09.9]} 89... Ke7 {[%clk
0:00:02.3]} 90. Ra7+ {[%clk 0:00:09.3]} 90... Ke8 {[%clk 0:00:02.7]} 1/2-1/2

[Event "Early-Titled-Tuesday-Blitz-May-28-2024"]
[Site "Chess.com"]
[Date "2024.05.28"]
[Round "2"]
[White "zimmm36"]
[Black "GMAneta"]
[Result "1-0"]
[WhiteElo "2786"]
[BlackElo "2554"]
[TimeControl "180+1"]
[EndTime "8:21:07 PDT"]
[Termination "zimmm36 won on time"]

1. e4 {[%clk 0:03:00.9]} 1... c5 {[%clk 0:02:58.7]} 2. Nf3 {[%clk 0:02:52.2]}
2... Nc6 {[%clk 0:02:58.1]} 3. d4 {[%clk 0:02:49]} 3... cxd4 {[%clk 0:02:58.2]}
4. Nxd4 {[%clk 0:02:49.9]} 4... g6 {[%clk 0:02:57.5]} 5. c4 {[%clk 0:02:49.8]}
5... Bg7 {[%clk 0:02:57.4]} 6. Be3 {[%clk 0:02:42.5]} 6... Nf6 {[%clk
0:02:55.9]} 7. Nc3 {[%clk 0:02:32.3]} 7... Ng4 {[%clk 0:02:55.1]} 8. Qxg4 {[%clk
0:02:31.5]} 8... Nxd4 {[%clk 0:02:54.3]} 9. Qd1 {[%clk 0:02:31.4]} 9... Ne6
{[%clk 0:02:54.2]} 10. Rc1 {[%clk 0:02:23.4]} 10... Qa5 {[%clk 0:02:53]} 11. Be2
{[%clk 0:02:18.5]} 11... d6 {[%clk 0:02:51.3]} 12. O-O {[%clk 0:02:13.5]} 12...
Bd7 {[%clk 0:02:49.7]} 13. a3 {[%clk 0:02:13.7]} 13... Bc6 {[%clk 0:02:49.1]}
14. f3 {[%clk 0:02:07.7]} 14... g5 {[%clk 0:02:49.2]} 15. Re1 {[%clk 0:01:46.2]}
15... h5 {[%clk 0:02:46.8]} 16. Nd5 {[%clk 0:01:40.7]} 16... Kf8 {[%clk
0:02:42.2]} 17. Bd2 {[%clk 0:01:29.6]} 17... Qc5+ {[%clk 0:02:40.2]} 18. Be3
{[%clk 0:01:29.4]} 18... Qa5 {[%clk 0:02:39.6]} 19. Rc2 {[%clk 0:01:11.8]} 19...
Ba4 {[%clk 0:02:37.8]} 20. Qd2 {[%clk 0:01:07.7]} 20... Qxd2 {[%clk 0:02:30.5]}
21. Rxd2 {[%clk 0:01:08.6]} 21... b6 {[%clk 0:02:29.6]} 22. Rc1 {[%clk
0:01:06.8]} 22... Rc8 {[%clk 0:02:28.6]} 23. h3 {[%clk 0:01:06]} 23... Bb3
{[%clk 0:02:26]} 24. Kf2 {[%clk 0:00:55]} 24... h4 {[%clk 0:02:21.8]} 25. Bd1
{[%clk 0:00:26.8]} 25... Rxc4 {[%clk 0:02:17.8]} 26. Rxc4 {[%clk 0:00:26.4]}
26... Bxc4 {[%clk 0:02:17.6]} 27. Rc2 {[%clk 0:00:27]} 27... Ba6 {[%clk
0:02:12.3]} 28. Be2 {[%clk 0:00:24.6]} 28... Bb7 {[%clk 0:02:12.3]} 29. Nc7
{[%clk 0:00:25.1]} 29... Nc5 {[%clk 0:01:45.9]} 30. b4 {[%clk 0:00:22.6]} 30...
Na4 {[%clk 0:01:45.7]} 31. Nb5 {[%clk 0:00:21.8]} 31... Bf6 {[%clk 0:01:32.8]}
32. Nxa7 {[%clk 0:00:20.9]} 32... Kg7 {[%clk 0:01:30.2]} 33. Bb5 {[%clk
0:00:21.3]} 33... Ra8 {[%clk 0:01:29.3]} 34. Bxa4 {[%clk 0:00:14.3]} 34... Rxa7
{[%clk 0:01:29.4]} 35. Bc6 {[%clk 0:00:15.1]} 35... Bxc6 {[%clk 0:01:21.9]} 36.
Rxc6 {[%clk 0:00:16]} 36... Rxa3 {[%clk 0:01:21.6]} 37. Bxb6 {[%clk 0:00:15.9]}
37... Ra2+ {[%clk 0:01:21]} 38. Kf1 {[%clk 0:00:15.8]} 38... Rb2 {[%clk
0:01:18.6]} 39. Rc4 {[%clk 0:00:14.3]} 39... e6 {[%clk 0:01:17.8]} 40. Bd4
{[%clk 0:00:14.3]} 40... Bxd4 {[%clk 0:01:09.2]} 41. Rxd4 {[%clk 0:00:15.2]}
41... Kf6 {[%clk 0:01:09]} 42. Rxd6 {[%clk 0:00:14.1]} 42... Rxb4 {[%clk
0:01:08.1]} 43. Rd7 {[%clk 0:00:14.7]} 43... Rb2 {[%clk 0:01:07.1]} 44. Kg1
{[%clk 0:00:15]} 44... Kg6 {[%clk 0:01:04.5]} 45. Kh2 {[%clk 0:00:15.4]} 45...
Kf6 {[%clk 0:01:04.6]} 46. Ra7 {[%clk 0:00:15.2]} 46... Kg6 {[%clk 0:01:04.3]}
47. Ra1 {[%clk 0:00:14.8]} 47... Kf6 {[%clk 0:01:04.2]} 48. Kg1 {[%clk
0:00:15.3]} 48... Ke5 {[%clk 0:01:04.3]} 49. Rd1 {[%clk 0:00:15.3]} 49... Kf4
{[%clk 0:01:04.1]} 50. Kh2 {[%clk 0:00:15.9]} 50... Rb7 {[%clk 0:00:53.6]} 51.
Rd8 {[%clk 0:00:15.8]} 51... Ke3 {[%clk 0:00:52.6]} 52. Rg8 {[%clk 0:00:14.1]}
52... Kf4 {[%clk 0:00:52.6]} 53. Rg7 {[%clk 0:00:14.6]} 53... Rc7 {[%clk
0:00:49.9]} 54. Kg1 {[%clk 0:00:14.6]} 54... Rc1+ {[%clk 0:00:45.8]} 55. Kf2
{[%clk 0:00:14.9]} 55... Rc2+ {[%clk 0:00:46.1]} 56. Kf1 {[%clk 0:00:14.9]}
56... Ke3 {[%clk 0:00:45.6]} 57. Kg1 {[%clk 0:00:13.8]} 57... Rc1+ {[%clk
0:00:45.6]} 58. Kh2 {[%clk 0:00:14.2]} 58... Rc7 {[%clk 0:00:45.5]} 59. Rxg5
{[%clk 0:00:14.4]} 59... f6 {[%clk 0:00:21.7]} 60. Rg4 {[%clk 0:00:13.6]} 60...
Kf2 {[%clk 0:00:20]} 61. Rxh4 {[%clk 0:00:13.5]} 61... f5 {[%clk 0:00:19.5]} 62.
exf5 {[%clk 0:00:12.8]} 62... exf5 {[%clk 0:00:19.8]} 63. Ra4 {[%clk 0:00:13.3]}
63... Rc2 {[%clk 0:00:19]} 64. Ra8 {[%clk 0:00:13.3]} 64... Kf1 {[%clk
0:00:19.3]} 65. Rg8 {[%clk 0:00:13.4]} 65... f4 {[%clk 0:00:18.4]} 66. h4 {[%clk
0:00:13.8]} 66... Ra2 {[%clk 0:00:16.2]} 67. Rg4 {[%clk 0:00:13.7]} 67... Rb2
{[%clk 0:00:15.6]} 68. h5 {[%clk 0:00:13.7]} 68... Rb5 {[%clk 0:00:15.6]} 69.
Rh4 {[%clk 0:00:13.9]} 69... Rg5 {[%clk 0:00:15.2]} 70. Rxf4 {[%clk 0:00:08.7]}
70... Rxg2+ {[%clk 0:00:13.4]} 71. Kh3 {[%clk 0:00:09.2]} 71... Kf2 {[%clk
0:00:12.5]} 72. h6 {[%clk 0:00:08.6]} 72... Rg1 {[%clk 0:00:10.6]} 73. Kh4
{[%clk 0:00:08.6]} 73... Rh1+ {[%clk 0:00:09.1]} 74. Kg5 {[%clk 0:00:09]} 74...
Kg3 {[%clk 0:00:09.3]} 75. Rf7 {[%clk 0:00:07.9]} 75... Rg1 {[%clk 0:00:07.1]}
76. f4 {[%clk 0:00:08]} 76... Kf3+ {[%clk 0:00:07.1]} 77. Kf5 {[%clk 0:00:08]}
77... Rh1 {[%clk 0:00:06.7]} 78. h7 {[%clk 0:00:08.5]} 78... Rh4 {[%clk
0:00:05.6]} 79. Kg5 {[%clk 0:00:08.3]} 79... Rg4+ {[%clk 0:00:05.8]} 80. Kh5
{[%clk 0:00:08.9]} 80... Rg1 {[%clk 0:00:06]} 81. Kh6 {[%clk 0:00:08.5]} 81...
Rh1+ {[%clk 0:00:06]} 82. Kg7 {[%clk 0:00:09.1]} 82... Rg1+ {[%clk 0:00:06.5]}
83. Kf8 {[%clk 0:00:09.7]} 83... Rh1 {[%clk 0:00:06.2]} 84. Kg8 {[%clk
0:00:10.2]} 84... Rg1+ {[%clk 0:00:04.9]} 85. Rg7 {[%clk 0:00:10.5]} 85... Rh1
{[%clk 0:00:05.1]} 86. h8=Q {[%clk 0:00:11]} 86... Rxh8+ {[%clk 0:00:05.3]} 87.
Kxh8 {[%clk 0:00:11.9]} 87... Kxf4 {[%clk 0:00:05.8]} 88. Kh7 {[%clk 0:00:12.8]}
1-0